bitfinex-derivatives/quotes_BTCF0:USTF0_20250830
["timestamp","ask_amount","ask_price","bid_price","bid_amount"]
[1756558207996,0.02022448,108610.0,108600.0,1.6001053]
[1756558208194,0.02022448,108610.0,108600.0,1.9609053]
[1756558208593,0.02022448,108610.0,108600.0,2.0539782]
[1756558208897,0.01759448,108610.0,108600.0,2.0539782]
[1756558209091,0.01759448,108610.0,108600.0,2.0549782]
[1756558209600,0.01759448,108610.0,108600.0,2.4349782]
[1756558210401,0.40044,108640.0,108610.0,0.0920591]
[1756558210602,0.40044,108640.0,108630.0,0.24487765]
[1756558211201,0.09572,108640.0,108630.0,0.24487765]
[1756558211601,0.09572,108640.0,108630.0,1.09831765]
[1756558212395,0.09572,108640.0,108630.0,1.45911765]
[1756558219310,0.41050632,108650.0,108630.0,1.97288534]
[1756558219609,0.03964,108650.0,108640.0,0.60567765]
[1756558220802,0.05993944,108650.0,108640.0,0.60567765]
[1756558222409,0.05993944,108650.0,108640.0,0.6791239]
[1756558222906,0.05993944,108650.0,108640.0,0.60567765]
[1756558225909,0.02029944,108650.0,108640.0,0.60567765]
[1756558227710,0.02029944,108650.0,108640.0,0.67874844]
[1756558233806,0.02029944,108650.0,108640.0,0.77078744]
[1756558235309,0.02029944,108650.0,108640.0,1.26566509]
[1756558235515,0.02029944,108650.0,108640.0,1.28566509]
[1756558235718,0.02029944,108650.0,108640.0,1.04078744]
[1756558236106,0.02029944,108650.0,108640.0,1.28566509]
[1756558237519,0.02029944,108650.0,108640.0,1.28766509]
[1756558237821,0.02029944,108650.0,108640.0,2.14202509]
[1756558238720,0.02029944,108650.0,108640.0,3.89266509]
[1756558239523,0.02029944,108650.0,108640.0,3.04030509]
[1756558239730,0.02029944,108650.0,108640.0,3.89262509]
[1756558240023,0.02029944,108650.0,108640.0,3.04030509]
[1756558240215,0.02029944,108650.0,108640.0,3.89254509]
[1756558240722,0.02029944,108650.0,108640.0,3.04030509]
[1756558240923,0.02029944,108650.0,108640.0,3.89254509]
[1756558242525,0.02029454,108650.0,108640.0,3.89254509]
[1756558244925,0.02029454,108650.0,108640.0,3.53174509]
[1756558245126,0.02029454,108650.0,108640.0,4.25334509]
[1756558245820,0.02029454,108650.0,108640.0,3.53174509]
[1756558246019,0.02029454,108650.0,108640.0,4.25334509]
[1756558246223,0.02029454,108650.0,108640.0,3.04418844]
[1756558246425,0.02029454,108650.0,108640.0,3.64614844]
[1756558246623,0.02029454,108650.0,108640.0,2.79418844]
[1756558246827,0.02029454,108650.0,108640.0,3.64614844]
[1756558247028,0.07943454,108650.0,108640.0,3.64614844]
[1756558247326,0.07943454,108650.0,108640.0,3.73818744]
[1756558247528,0.02029454,108650.0,108640.0,3.73818744]
[1756558247826,0.02029454,108650.0,108640.0,3.73814744]
[1756558254728,0.02029454,108650.0,108640.0,2.88622744]
[1756558254933,0.09815,108650.0,108640.0,3.49298979]
[1756558255232,0.09815,108650.0,108640.0,3.40091079]
[1756558256030,0.09815,108650.0,108640.0,2.79418844]
[1756558256225,0.09815,108650.0,108640.0,3.64578844]
[1756558258828,0.09815,108650.0,108640.0,3.64478844]
[1756558259231,0.09815,108650.0,108640.0,3.64378844]
[1756558262647,0.09815,108650.0,108640.0,1.89314844]
[1756558266455,0.0576,108660.0,108640.0,1.89314844]
[1756558266658,0.09605,108660.0,108650.0,0.60567765]
[1756558266955,0.11595256,108660.0,108650.0,0.62460208]
[1756558269455,0.01990256,108660.0,108650.0,0.86947973]
[1756558271052,0.01990256,108660.0,108650.0,0.62460208]
[1756558271254,0.01990256,108660.0,108650.0,0.86947973]
[1756558272267,0.05835256,108660.0,108650.0,0.86947973]
[1756558273665,0.01990256,108660.0,108650.0,0.86947973]
[1756558274163,0.05835256,108660.0,108650.0,0.86947973]
[1756558275867,0.01990256,108660.0,108650.0,0.86947973]
[1756558276066,0.05835256,108660.0,108650.0,0.86947973]
[1756558276865,0.01990256,108660.0,108650.0,0.86947973]
[1756558279466,0.04970403,108660.0,108650.0,0.86947973]
[1756558279667,0.06960659,108660.0,108650.0,0.86947973]
[1756558280674,0.10805659,108660.0,108650.0,0.86947973]
[1756558280970,0.06960659,108660.0,108650.0,0.86947973]
[1756558281161,0.10805659,108660.0,108650.0,0.86947973]
[1756558281362,0.06960659,108660.0,108650.0,0.96151023]
[1756558281966,0.01990256,108660.0,108650.0,0.96151023]
[1756558283272,0.01990256,108660.0,108650.0,0.96251023]
[1756558284363,0.01990256,108660.0,108650.0,0.98251023]
[1756558284568,0.01990256,108660.0,108650.0,0.98351023]
[1756558293189,0.05824256,108660.0,108650.0,1.72167973]
[1756558293387,0.11322256,108660.0,108650.0,1.72109663]
[1756558293683,0.11322256,108660.0,108650.0,1.72105663]
[1756558295287,0.11322256,108660.0,108650.0,1.72105307]
[1756558296289,0.05824256,108660.0,108650.0,1.72105307]
[1756558296885,0.11322256,108660.0,108650.0,1.72105307]
[1756558297889,0.05824256,108660.0,108650.0,1.72105307]
[1756558299892,0.11322256,108660.0,108650.0,1.23172443]
[1756558300093,0.11322256,108660.0,108650.0,0.62630875]
[1756558300292,0.11322256,108660.0,108650.0,1.47622875]
[1756558301198,0.41292659,108660.0,108650.0,1.23164443]
[1756558301500,0.41292659,108660.0,108650.0,1.47622875]
[1756558302000,0.41292659,108660.0,108650.0,0.62630875]
[1756558302201,0.41292659,108660.0,108650.0,1.48078875]
[1756558302389,0.41292659,108660.0,108650.0,0.63090875]
[1756558302698,0.41292659,108660.0,108650.0,1.11998875]
[1756558302898,0.36322256,108660.0,108650.0,1.11998875]
[1756558305300,0.77372659,108660.0,108650.0,1.11994875]
[1756558305499,0.77372659,108660.0,108650.0,0.25118432]
[1756558305895,0.77372659,108660.0,108650.0,0.85644]
[1756558306099,0.77372659,108660.0,108650.0,1.10102432]
[1756558306301,0.77372659,108660.0,108650.0,0.85644]
[1756558306600,0.77372659,108660.0,108650.0,0.0066]
[1756558306795,0.96860688,108660.0,108650.0,0.0066]
[1756558307000,1.03487942,108660.0,108650.0,0.85644]
[1756558307198,0.7902951,108660.0,108650.0,1.10102432]
[1756558307397,0.72402256,108660.0,108650.0,1.10102432]
[1756558310499,0.72402256,108660.0,108650.0,0.25118432]
[1756558310699,0.72402256,108660.0,108650.0,0.8564]
[1756558311303,0.77361262,108660.0,108650.0,0.8564]
[1756558314005,1.01819694,108660.0,108650.0,0.8564]
[1756558314203,0.96860688,108660.0,108650.0,0.0066]
[1756558314606,0.72402256,108660.0,108650.0,0.0066]
[1756558314802,0.96860688,108660.0,108650.0,0.0066]
[1756558316302,1.32448374,108660.0,108630.0,0.00404]
[1756558316506,0.45412,108640.0,108630.0,0.86026]
[1756558316805,0.47402256,108640.0,108630.0,1.10484432]
[1756558319009,0.47402256,108640.0,108630.0,0.86026]
[1756558319210,0.47402256,108640.0,108630.0,1.10484432]
[1756558321406,0.47402256,108640.0,108630.0,0.86026]
[1756558321706,0.47402256,108640.0,108630.0,1.10484432]
[1756558322808,0.47402256,108640.0,108630.0,0.86026]
[1756558323110,0.47402256,108640.0,108630.0,1.10484432]
[1756558324707,0.47402256,108640.0,108630.0,0.86026]
[1756558324906,0.47402256,108640.0,108630.0,1.10484432]
[1756558325413,0.71882972,108640.0,108630.0,1.10506716]
[1756558325799,0.47374942,108640.0,108630.0,1.10506716]
[1756558326003,0.76810996,108640.0,108630.0,1.10506716]
[1756558326204,0.40730996,108640.0,108630.0,1.10506716]
[1756558326499,0.76810996,108640.0,108630.0,1.10506716]
[1756558329804,0.5233028,108640.0,108630.0,1.10506716]
[1756558330008,0.76810996,108640.0,108630.0,1.10506716]
[1756558330313,0.1075228,108640.0,108630.0,1.10506716]
[1756558330515,0.1075228,108640.0,108630.0,1.34987432]
[1756558331512,0.1621628,108640.0,108630.0,1.34987432]
[1756558332615,0.1621628,108640.0,108630.0,1.71067432]
[1756558332916,0.1075228,108640.0,108630.0,1.71067432]
[1756558333105,0.10756376,108640.0,108630.0,1.71067432]
[1756558335507,0.16220376,108640.0,108630.0,0.86091432]
[1756558335712,0.35745754,108640.0,108630.0,1.10482716]
[1756558336110,0.35745754,108640.0,108630.0,0.25530716]
[1756558336318,0.71825754,108640.0,108630.0,1.10482716]
[1756558337114,0.71925754,108640.0,108630.0,1.10482716]
[1756558337315,0.71925754,108640.0,108630.0,1.10482002]
[1756558337316,0.47545038,108640.0,108630.0,1.10482002]
[1756558338319,0.47545038,108640.0,108630.0,0.0105]
[1756558338320,0.78652294,108640.0,108630.0,0.0105]
[1756558338514,0.78652294,108640.0,108630.0,0.85998]
[1756558339721,0.78652294,108640.0,108630.0,0.0105]
[1756558339921,0.78652294,108640.0,108630.0,0.85998]
[1756558341221,0.78652294,108640.0,108630.0,0.00646]
[1756558341421,0.08953,108630.0,108620.0,0.87396358]
[1756558341622,0.47000038,108630.0,108620.0,0.87396358]
[1756558341824,0.47000038,108630.0,108620.0,1.1187636]
[1756558344425,0.47100038,108630.0,108620.0,1.1187636]
[1756558345223,0.11020038,108630.0,108620.0,1.1187636]
[1756558346326,0.11020038,108630.0,108620.0,0.02448358]
[1756558346528,0.11020038,108630.0,108620.0,0.2692836]
[1756558346832,0.11020038,108630.0,108620.0,1.1186836]
[1756558348332,0.15988358,108630.0,108620.0,1.1186836]
[1756558351023,0.03736,108630.0,108620.0,0.87176358]
[1756558351228,0.03736,108630.0,108620.0,1.1165636]
[1756558351825,0.03736,108630.0,108620.0,1.1695836]
[1756558357440,0.03736,108630.0,108620.0,0.92478358]
[1756558357640,0.03736,108630.0,108620.0,1.1695836]
[1756558359339,0.03736,108630.0,108620.0,1.41441606]
[1756558367950,0.05699963,108630.0,108620.0,1.41441606]
[1756558368146,0.05699963,108630.0,108620.0,0.92478358]
[1756558368348,0.12327217,108630.0,108620.0,1.41441606]
[1756558369447,0.05699963,108630.0,108620.0,1.41441606]
[1756558377348,0.01963963,108630.0,108620.0,1.41441606]
[1756558377651,0.01963963,108630.0,108620.0,1.77521606]
[1756558378653,0.06937502,108630.0,108620.0,1.77521606]
[1756558380354,0.06937502,108630.0,108620.0,1.28558358]
[1756558380555,0.06937502,108630.0,108620.0,1.77521606]
[1756558381050,0.01963963,108630.0,108620.0,1.77521606]
[1756558382753,0.01963963,108630.0,108620.0,1.28558358]
[1756558382959,0.01963963,108630.0,108620.0,1.77521606]
[1756558388763,0.01963963,108630.0,108620.0,1.77429606]
[1756558390257,0.01963963,108630.0,108620.0,0.92581606]
[1756558390465,0.01963963,108630.0,108620.0,1.77429606]
[1756558391266,0.0497248,108630.0,108620.0,1.77429606]
[1756558391653,0.06936443,108630.0,108620.0,1.77429606]
[1756558391860,0.0497248,108630.0,108620.0,1.77429606]
[1756558392062,0.06936443,108630.0,108620.0,1.77429606]
[1756558392257,0.0497248,108630.0,108620.0,1.77429606]
[1756558392458,0.06936443,108630.0,108620.0,1.77429606]
[1756558392657,0.0497248,108630.0,108620.0,1.77429606]
[1756558392857,0.06936443,108630.0,108620.0,1.77429606]
[1756558393057,0.0497248,108630.0,108620.0,1.77429606]
[1756558393261,0.06936443,108630.0,108620.0,1.77429606]
[1756558393461,0.0497248,108630.0,108620.0,1.77429606]
[1756558393658,0.06936443,108630.0,108620.0,1.77429606]
[1756558393859,0.0497248,108630.0,108620.0,1.77429606]
[1756558394059,0.06936443,108630.0,108620.0,1.77429606]
[1756558394258,0.0497248,108630.0,108620.0,1.77429606]
[1756558394458,0.06936443,108630.0,108620.0,1.77429606]
[1756558394661,0.0497248,108630.0,108620.0,1.77429606]
[1756558394857,0.06936443,108630.0,108620.0,1.77429606]
[1756558395058,0.0497248,108630.0,108620.0,1.77429606]
[1756558395261,0.06936443,108630.0,108620.0,1.77429606]
[1756558395461,0.0497248,108630.0,108620.0,1.77429606]
[1756558395659,0.06936443,108630.0,108620.0,1.77429606]
[1756558395861,0.0863248,108630.0,108620.0,1.77413606]
[1756558396165,0.16008443,108630.0,108620.0,1.41329606]
[1756558398866,0.10596443,108630.0,108620.0,1.41329606]
[1756558399060,0.07375963,108630.0,108620.0,1.41329606]
[1756558399264,0.43868715,108640.0,108630.0,0.0858]
[1756558399464,0.68350339,108640.0,108630.0,0.33061624]
[1756558400466,0.68350339,108640.0,108630.0,0.0858]
[1756558400662,0.68450339,108640.0,108630.0,0.33061624]
[1756558401263,0.73039339,108640.0,108630.0,0.33061624]
[1756558406673,0.68910624,108640.0,108630.0,0.33061624]
[1756558411176,0.70874482,108640.0,108630.0,0.33061624]
[1756558412677,0.77505651,108640.0,108630.0,0.33061624]
[1756558413880,0.70874482,108640.0,108630.0,0.33061624]
[1756558417277,0.77505651,108640.0,108630.0,0.33061624]
[1756558418379,0.70874482,108640.0,108630.0,0.33061624]
[1756558418985,0.77505651,108640.0,108630.0,0.33061624]
[1756558419176,0.70874482,108640.0,108630.0,0.33061624]
[1756558419376,0.95356106,108640.0,108630.0,1.17829624]
[1756558419577,1.01987275,108640.0,108630.0,1.17829624]
[1756558419781,0.77505651,108640.0,108630.0,1.17829624]
[1756558423783,0.70874482,108640.0,108630.0,1.17829624]
[1756558424382,0.95356106,108640.0,108630.0,1.17829624]
[1756558424783,0.95356106,108640.0,108630.0,0.93348]
[1756558424985,0.95356106,108640.0,108630.0,1.17829624]
[1756558428486,0.95356106,108640.0,108630.0,0.93328]
[1756558428783,0.95356106,108640.0,108630.0,1.17809624]
[1756558429788,0.95356106,108640.0,108630.0,0.93328]
[1756558429985,0.95356106,108640.0,108630.0,1.17809624]
[1756558430787,0.10312858,108640.0,108630.0,1.17809624]
[1756558431084,0.41425198,108640.0,108630.0,1.17809624]
[1756558431484,0.77505198,108640.0,108630.0,1.17809624]
[1756558432886,0.41425198,108640.0,108630.0,1.17809624]
[1756558433283,0.08694574,108640.0,108630.0,1.17809624]
[1756558434283,0.37810198,108640.0,108630.0,1.17809624]
[1756558434890,0.33176198,108640.0,108630.0,1.17809624]
[1756558435097,0.08694574,108640.0,108630.0,1.17809624]
[1756558435284,0.33176198,108640.0,108630.0,1.17809624]
[1756558435592,0.08694574,108640.0,108630.0,1.17809624]
[1756558435787,0.33176198,108640.0,108630.0,1.17809624]
[1756558436889,0.36765198,108640.0,108630.0,0.93328]
[1756558437090,0.36765198,108640.0,108630.0,1.17809624]
[1756558437389,0.41399198,108640.0,108630.0,1.17809624]
[1756558438390,0.16917574,108640.0,108630.0,1.17809624]
[1756558438586,0.36765198,108640.0,108630.0,1.17809624]
[1756558438893,0.30134482,108640.0,108630.0,1.17809624]
[1756558440291,0.34768482,108640.0,108630.0,0.93328]
[1756558440493,0.05652858,108640.0,108630.0,0.93328]
[1756558440681,0.26545482,108640.0,108630.0,1.17809624]
[1756558440888,0.02063858,108640.0,108630.0,1.42291248]
[1756558441692,0.02063858,108640.0,108630.0,1.17809624]
[1756558442295,0.02063858,108640.0,108630.0,2.03371248]
[1756558442494,0.07035551,108640.0,108630.0,2.03371248]
[1756558444192,0.6719234,108660.0,108640.0,0.05283]
[1756558444499,0.7082034,108660.0,108650.0,1.18193624]
[1756558444699,0.46338716,108660.0,108650.0,1.18193624]
[1756558444900,0.51668716,108660.0,108650.0,1.18193624]
[1756558445500,0.7615034,108660.0,108650.0,1.18193624]
[1756558445901,0.46338716,108660.0,108650.0,1.18193624]
[1756558446097,0.39708,108660.0,108650.0,1.18193624]
[1756558446899,0.3608,108660.0,108650.0,1.18193624]
[1756558448912,0.39708,108660.0,108650.0,0.93712]
[1756558449207,0.39708,108660.0,108650.0,1.01170802]
[1756558449407,0.39708,108660.0,108650.0,1.25652426]
[1756558450507,0.3608,108660.0,108650.0,1.5013405]
[1756558450707,0.3608,108660.0,108650.0,1.25652426]
[1756558456109,0.38041867,108660.0,108650.0,1.25652426]
[1756558460913,0.01961867,108660.0,108650.0,1.25652426]
[1756558461217,0.38041867,108660.0,108650.0,1.25652426]
[1756558462009,0.01961867,108660.0,108650.0,1.25652426]
[1756558462212,0.38041867,108660.0,108650.0,1.25652426]
[1756558462419,0.01961867,108660.0,108650.0,1.5013405]
[1756558464515,0.50002583,108670.0,108650.0,1.4485105]
[1756558464821,0.53630583,108670.0,108660.0,0.52688248]
[1756558465116,0.53630583,108670.0,108660.0,0.57971248]
[1756558467719,0.53630583,108670.0,108660.0,1.42615248]
[1756558469624,0.17550583,108670.0,108660.0,1.42615248]
[1756558471016,0.10919867,108670.0,108660.0,1.42615248]
[1756558471221,0.17550583,108670.0,108660.0,1.42615248]
[1756558474823,0.17550583,108670.0,108660.0,0.57971248]
[1756558475020,0.17550583,108670.0,108660.0,1.42599248]
[1756558475822,0.42032207,108670.0,108660.0,1.42599248]
[1756558476220,0.42032207,108670.0,108660.0,1.42595248]
[1756558476522,0.42032207,108670.0,108660.0,0.93632]
[1756558476821,0.42032207,108670.0,108660.0,1.42595248]
[1756558480315,0.35401491,108670.0,108660.0,1.42595248]
[1756558481125,0.42025831,108670.0,108660.0,1.42595248]
[1756558481326,0.17544207,108670.0,108660.0,1.42595248]
[1756558482325,0.72524404,108680.0,108670.0,0.05309]
[1756558482633,0.76075404,108680.0,108670.0,0.33125624]
[1756558483430,0.5159378,108680.0,108670.0,0.33125624]
[1756558483630,0.76075404,108680.0,108670.0,0.33125624]
[1756558483832,0.5159378,108680.0,108670.0,0.33125624]
[1756558484032,0.43308534,108680.0,108670.0,0.33125624]
[1756558484229,0.39757534,108680.0,108670.0,0.33125624]
[1756558484529,0.43308534,108680.0,108670.0,0.33125624]
[1756558485736,0.07228534,108680.0,108670.0,0.33125624]
[1756558486123,0.07228534,108680.0,108670.0,0.69205624]
[1756558489241,0.03677534,108680.0,108670.0,0.69205624]
[1756558489539,0.66526624,108690.0,108680.0,0.08644]
[1756558489729,0.66526624,108690.0,108680.0,0.33125624]
[1756558490347,0.42045,108690.0,108680.0,0.33125624]
[1756558490534,0.66526624,108690.0,108680.0,0.33125624]
[1756558490731,0.42045,108690.0,108680.0,0.33125624]
[1756558490935,0.66526624,108690.0,108680.0,0.33125624]
[1756558491331,0.70382724,108690.0,108680.0,0.33125624]
[1756558491737,0.459011,108690.0,108680.0,0.57607248]
[1756558492441,0.52519916,108690.0,108680.0,0.57607248]
[1756558493046,0.7700154,108690.0,108680.0,0.33125624]
[1756558494441,0.78969251,108690.0,108680.0,0.33125624]
[1756558495754,0.54487627,108690.0,108680.0,0.33125624]
[1756558496046,0.78969251,108690.0,108680.0,0.33125624]
[1756558496236,0.78969251,108690.0,108680.0,0.08644]
[1756558496434,0.78969251,108690.0,108680.0,0.33125624]
[1756558496945,0.54487627,108690.0,108680.0,0.33125624]
[1756558497142,0.78969251,108690.0,108680.0,0.33125624]
[1756558498344,0.78969251,108690.0,108680.0,0.27816624]
[1756558498544,0.78969251,108690.0,108680.0,0.24481624]
[1756558498746,0.78969251,108690.0,108680.0,0.27816624]
[1756558499245,0.78969251,108690.0,108680.0,0.03335]
[1756558499444,0.78969251,108690.0,108670.0,1.14366624]
[1756558499445,0.02414,108680.0,108670.0,0.93216]
[1756558499745,0.73457511,108680.0,108670.0,1.17697624]
[1756558500448,0.73457511,108680.0,108670.0,0.33125624]
[1756558501547,0.75113151,108680.0,108670.0,0.33125624]
[1756558502048,0.50631527,108680.0,108670.0,0.33125624]
[1756558503156,0.14551527,108680.0,108670.0,0.33125624]
[1756558503543,0.12137527,108680.0,108670.0,0.33125624]
[1756558504450,0.14598527,108680.0,108670.0,0.33125624]
[1756558506051,0.14598527,108680.0,108670.0,0.08644]
[1756558506250,0.14598527,108680.0,108670.0,0.33125624]
[1756558507551,0.14598527,108680.0,108670.0,0.08644]
[1756558507755,0.39080151,108680.0,108670.0,0.33125624]
[1756558509060,0.14598527,108680.0,108670.0,0.33125624]
[1756558510157,0.12137527,108680.0,108670.0,0.33125624]
[1756558510647,0.12137527,108680.0,108670.0,0.69205624]
[1756558512755,0.08586527,108680.0,108670.0,1.18687248]
[1756558519956,0.08586527,108680.0,108670.0,2.03227248]
[1756558521070,0.01967711,108680.0,108670.0,2.03227248]
[1756558522469,0.01967711,108680.0,108670.0,1.54264]
[1756558522670,0.01967711,108680.0,108670.0,2.03227248]
[1756558524164,0.16382916,108690.0,108680.0,0.08574]
[1756558524365,0.18349433,108690.0,108680.0,0.57537248]
[1756558524568,0.18349433,108690.0,108680.0,1.42069248]
[1756558528675,0.18349433,108690.0,108680.0,1.42065248]
[1756558529076,0.18349433,108690.0,108680.0,0.93102]
[1756558529276,0.18349433,108690.0,108680.0,1.42065248]
[1756558531679,0.11730617,108690.0,108680.0,1.42065248]
[1756558532572,0.09269617,108690.0,108680.0,1.42065248]
[1756558532971,0.09269617,108690.0,108680.0,0.57537248]
[1756558533178,0.09269617,108690.0,108680.0,1.42057248]
[1756558536379,0.09269617,108690.0,108680.0,0.93094]
[1756558536779,0.09269617,108690.0,108680.0,1.42057248]
[1756558537179,0.05822617,108690.0,108680.0,1.42057248]
[1756558538587,0.72186241,108690.0,108680.0,1.42053248]
[1756558538882,0.69916241,108690.0,108680.0,1.42053248]
[1756558539390,0.45434617,108690.0,108680.0,1.42053248]
[1756558540084,0.69916241,108690.0,108680.0,1.42053248]
[1756558540986,0.45434617,108690.0,108680.0,1.42053248]
[1756558541286,0.69916241,108690.0,108680.0,1.42049248]
[1756558542486,0.45434617,108690.0,108680.0,1.42049248]
[1756558542686,0.69916241,108690.0,108680.0,1.42049248]
[1756558545891,0.76535057,108690.0,108680.0,1.42049248]
[1756558547693,0.52053433,108690.0,108680.0,1.42049248]
[1756558557200,0.45434617,108690.0,108680.0,1.42049248]
[1756558558905,0.45434617,108690.0,108680.0,0.93086]
[1756558559106,0.45434617,108690.0,108680.0,1.42049248]
[1756558559803,0.52053433,108690.0,108680.0,1.42049248]
[1756558560204,0.52053433,108690.0,108680.0,0.57537248]
[1756558560407,0.54323433,108690.0,108680.0,1.42017248]
[1756558560601,0.52053433,108690.0,108680.0,1.42017248]
[1756558560803,0.54323433,108690.0,108680.0,1.42017248]
[1756558561899,0.78805057,108690.0,108680.0,1.42017248]
[1756558563107,0.78805057,108690.0,108680.0,0.93054]
[1756558563404,0.78805057,108690.0,108680.0,1.42017248]
[1756558563704,0.78805057,108690.0,108680.0,0.57537248]
[1756558563907,0.78805057,108690.0,108680.0,0.9305]
[1756558564111,0.78805057,108690.0,108680.0,1.17531624]
[1756558564613,0.54323433,108690.0,108680.0,1.17531624]
[1756558564906,0.78805057,108690.0,108680.0,1.17531624]
[1756558566713,0.78805057,108690.0,108680.0,0.08574]
[1756558566906,0.97186241,108690.0,108680.0,0.93046]
[1756558567107,1.03814907,108690.0,108680.0,0.08574]
[1756558567611,1.05471487,108690.0,108680.0,0.08574]
[1756558568813,1.89943487,108690.0,108680.0,0.08574]
[1756558570011,1.89943487,108690.0,108680.0,0.0111514]
[1756558570814,2.2405697,108690.0,108680.0,0.0111514]
[1756558571416,2.15771724,108690.0,108680.0,0.0111514]
[1756558571816,2.2405697,108690.0,108680.0,0.0111514]
[1756558572317,2.15771724,108690.0,108680.0,0.0111514]
[1756558577523,1.912901,108690.0,108680.0,0.0111514]
[1756558577819,2.15771724,108690.0,108680.0,0.0111514]
[1756558580228,2.2405697,108690.0,108680.0,0.0111514]
[1756558581225,2.15771724,108690.0,108680.0,0.0111514]
[1756558581820,2.2405697,108690.0,108680.0,0.0111514]
[1756558583025,2.15771724,108690.0,108680.0,0.0111514]
[1756558583433,1.97011762,108690.0,108680.0,0.0111514]
[1756558583725,2.00569762,108690.0,108680.0,0.0111514]
[1756558583925,2.00569762,108690.0,108680.0,0.25596764]
[1756558583926,1.24383008,108690.0,108680.0,0.25596764]
[1756558584126,2.00545762,108690.0,108680.0,0.30819764]
[1756558584827,2.00545762,108690.0,108680.0,0.0633814]
[1756558585027,2.00545762,108690.0,108680.0,0.30819764]
[1756558585422,2.04284762,108690.0,108680.0,0.30819764]
[1756558586827,2.04284762,108690.0,108680.0,0.0633814]
[1756558587026,2.04284762,108690.0,108680.0,0.30819764]
[1756558587731,2.07075883,108690.0,108680.0,0.30819764]
[1756558587918,1.70995883,108690.0,108680.0,0.30819764]
[1756558589228,1.70995883,108690.0,108680.0,0.0633814]
[1756558589430,1.70995883,108690.0,108680.0,0.30819764]
[1756558590533,0.86547883,108690.0,108680.0,0.30819764]
[1756558590724,1.70983883,108690.0,108680.0,0.30819764]
[1756558591030,0.86547883,108690.0,108680.0,0.30819764]
[1756558591231,1.70979883,108690.0,108680.0,0.30819764]
[1756558592130,1.79265129,108690.0,108680.0,0.30819764]
[1756558594632,1.70979883,108690.0,108680.0,0.30819764]
[1756558595228,1.79265129,108690.0,108680.0,0.30819764]
[1756558595937,1.81235618,108690.0,108680.0,0.30819764]
[1756558596337,1.72950372,108690.0,108680.0,0.30819764]
[1756558598243,0.64036748,108690.0,108680.0,0.30819764]
[1756558598535,1.72938372,108690.0,108680.0,0.30819764]
[1756558598940,1.72938372,108690.0,108680.0,0.0633814]
[1756558599140,1.72938372,108690.0,108680.0,0.25596764]
[1756558599340,1.72938372,108690.0,108680.0,0.30925764]
[1756558601144,1.72938372,108690.0,108680.0,0.25596764]
[1756558601346,1.81223618,108690.0,108680.0,0.25596764]
[1756558603744,1.81223618,108690.0,108680.0,0.30925764]
[1756558607254,1.72938372,108690.0,108680.0,0.30925764]
[1756558608456,1.72938372,108690.0,108680.0,0.0111514]
[1756558608655,1.72938372,108690.0,108680.0,0.30925764]
[1756558608954,1.81223618,108690.0,108680.0,0.30925764]
[1756558610756,1.72938372,108690.0,108680.0,0.30925764]
[1756558611757,0.88518372,108690.0,108680.0,0.30925764]
[1756558611959,1.72910372,108690.0,108680.0,0.30925764]
[1756558613060,1.72910372,108690.0,108680.0,0.0644414]
[1756558613259,1.72910372,108690.0,108680.0,0.30925764]
[1756558613562,1.48428748,108690.0,108680.0,0.30925764]
[1756558613859,1.72910372,108690.0,108680.0,0.30925764]
[1756558614160,0.88518372,108690.0,108680.0,0.30925764]
[1756558614360,1.72902372,108690.0,108680.0,0.30925764]
[1756558615960,1.79531869,108690.0,108680.0,0.30925764]
[1756558617258,1.79531869,108690.0,108680.0,0.25596764]
[1756558618665,1.79531869,108690.0,108680.0,0.30925764]
[1756558619163,1.63633731,108690.0,108680.0,0.30925764]
[1756558621467,1.63633731,108690.0,108680.0,0.0644414]
[1756558621658,1.63633731,108690.0,108680.0,0.30925764]
[1756558621857,1.63633731,108690.0,108680.0,0.55407388]
[1756558621858,0.4813861,108690.0,108680.0,0.55407388]
[1756558622158,1.63621716,108690.0,108680.0,0.55407388]
[1756558622359,1.63621716,108690.0,108680.0,0.30925764]
[1756558622869,1.39140092,108690.0,108680.0,0.30925764]
[1756558623171,1.6527748,108690.0,108680.0,0.30925764]
[1756558624670,1.56984234,108690.0,108680.0,0.30925764]
[1756558628273,1.6526948,108690.0,108680.0,0.30925764]
[1756558628675,0.56423856,108690.0,108680.0,0.55407388]
[1756558628876,1.6526548,108690.0,108680.0,0.55407388]
[1756558630179,1.40783856,108690.0,108680.0,0.55407388]
[1756558630374,1.6526548,108690.0,108680.0,0.55407388]
[1756558631078,1.56980234,108690.0,108680.0,0.55407388]
[1756558631377,1.56980234,108690.0,108680.0,0.30925764]
[1756558631769,1.56980234,108690.0,108680.0,0.25596764]
[1756558633875,1.56980234,108690.0,108680.0,0.0111514]
[1756558634082,1.56980234,108690.0,108680.0,0.25596764]
[1756558634276,1.56980234,108690.0,108680.0,0.30695764]
[1756558636580,1.6526548,108690.0,108680.0,0.30695764]
[1756558638178,1.6526548,108690.0,108680.0,0.0621414]
[1756558638483,1.6526548,108690.0,108680.0,0.30695764]
[1756558639085,1.40783856,108690.0,108680.0,0.30695764]
[1756558639287,1.6526548,108690.0,108680.0,0.30695764]
[1756558641184,1.6526548,108690.0,108680.0,0.0621414]
[1756558641387,1.6526548,108690.0,108680.0,0.30695764]
[1756558644491,1.40783856,108690.0,108680.0,0.30695764]
[1756558644791,1.6526548,108690.0,108680.0,0.30695764]
[1756558648089,1.6526548,108690.0,108680.0,0.0111514]
[1756558648294,1.6526548,108690.0,108680.0,0.30695764]
[1756558649395,1.6526548,108690.0,108680.0,0.0621414]
[1756558649592,1.56980234,108690.0,108680.0,0.30695764]
[1756558650194,1.56980234,108690.0,108680.0,0.25596764]
[1756558651296,1.6526548,108690.0,108680.0,0.25596764]
[1756558652496,0.8090548,108690.0,108680.0,0.30420764]
[1756558652685,1.6521348,108690.0,108680.0,0.30420764]
[1756558656299,1.6521348,108690.0,108680.0,0.0593914]
[1756558656500,1.6521348,108690.0,108680.0,0.30420764]
[1756558657697,0.56423856,108690.0,108680.0,0.54902388]
[1756558657995,1.56920234,108690.0,108680.0,0.54902388]
[1756558661308,1.63548266,108690.0,108680.0,0.54902388]
[1756558663106,1.63548266,108690.0,108680.0,0.50078388]
[1756558663313,1.63548266,108690.0,108680.0,0.25596764]
[1756558664112,0.06959,108680.0,108670.0,0.94208488]
[1756558664312,0.45009489,108680.0,108670.0,1.18690112]
[1756558664611,0.69491113,108680.0,108670.0,1.27791975]
[1756558664811,0.45009489,108680.0,108670.0,0.43503975]
[1756558665015,0.76119145,108680.0,108670.0,0.43503975]
[1756558665816,0.76119145,108680.0,108670.0,0.36797487]
[1756558666115,0.76119145,108680.0,108670.0,0.12315863]
[1756558666417,0.76119145,108680.0,108670.0,0.36797487]
[1756558667115,0.76119145,108680.0,108670.0,0.41621487]
[1756558668412,0.76119145,108680.0,108670.0,0.17139863]
[1756558668617,0.76119145,108680.0,108670.0,0.41621487]
[1756558671522,0.51637521,108680.0,108670.0,0.17139863]
[1756558671823,0.69491113,108680.0,108670.0,0.41621487]
[1756558677324,0.69491113,108680.0,108670.0,0.17139863]
[1756558677519,0.69491113,108680.0,108670.0,0.41621487]